bitfinex-derivatives/quotes_SOLF0:USTF0_20260110
["timestamp","ask_amount","ask_price","bid_price","bid_amount"]
[1768017970357,0.33061624,135.86,135.79,1.5201012]
[1768017971553,0.04925056,135.84,135.79,1.5201012]
[1768017972255,0.04925056,135.84,135.79,0.33069868]
[1768017972549,0.04925056,135.84,135.79,1.5201012]
[1768017976057,0.04925056,135.84,135.77,87.31069868]
[1768017976058,0.3798668,135.84,135.77,87.31069868]
[1768017976252,0.3798668,135.84,135.78,0.33069868]
[1768017978453,0.3798668,135.84,135.78,8.1569012]
[1768017981061,0.3798668,135.84,135.78,6.96749868]
[1768017981249,0.3798668,135.84,135.78,8.1569012]
[1768017983158,0.33061624,135.83,135.75,0.33069868]
[1768017983355,0.33061624,135.82,135.75,0.33069868]
[1768017983962,0.05588679,135.8,135.75,0.33069868]
[1768017986856,0.05588679,135.8,135.76,0.33069868]
[1768017992069,0.33061624,135.84,135.77,0.33069868]
[1768017993571,6.96471624,135.84,135.77,0.33069868]
[1768017997276,0.32801542,135.83,135.77,0.33069868]
[1768018001475,0.32801542,135.83,135.77,6.96799868]
[1768018004276,0.32801542,135.86,135.81,0.32762477]
[1768018006378,0.32801542,135.86,135.81,6.96302477]
[1768018007483,0.32801542,135.86,135.81,0.32762477]
[1768018008582,6.96021542,135.88,135.81,0.32762477]
[1768018009283,5.91235868,135.87,135.81,0.32762477]
[1768018009494,6.96021542,135.88,135.81,0.32762477]
[1768018009779,6.6313,135.9,135.82,0.32762477]
[1768018009987,0.32801542,135.9,135.82,0.32762477]
[1768018010187,5.91626939,135.89,135.82,0.32762477]
[1768018010388,0.32801542,135.9,135.82,0.32762477]
[1768018010687,5.91629243,135.89,135.82,0.32762477]
[1768018010882,0.32801542,135.9,135.82,0.32762477]
[1768018011185,5.91625179,135.89,135.82,0.32762477]
[1768018011386,0.32801542,135.9,135.82,0.32762477]
[1768018011578,5.91624735,135.89,135.83,0.32690931]
[1768018011774,0.32801542,135.9,135.83,0.32690931]
[1768018011982,5.91581946,135.89,135.83,0.32690931]
[1768018012181,0.32801542,135.9,135.83,0.32690931]
[1768018012383,6.23068888,135.89,135.83,0.32690931]
[1768018012583,0.3133506,135.89,135.83,0.32690931]
[1768018012780,6.6307,135.91,135.84,0.32690931]
[1768018012984,5.91758304,135.9,135.84,0.32690931]
[1768018013184,5.91892359,135.89,135.84,0.32690931]
[1768018013384,6.9440506,135.91,135.84,0.32690931]
[1768018013585,5.918927,135.9,135.84,0.32690931]
[1768018013788,5.918927,135.89,135.84,0.32690931]
[1768018013987,6.9440506,135.91,135.84,0.32690931]
[1768018014177,5.918927,135.9,135.84,0.32690931]
[1768018014377,0.3133506,135.91,135.85,0.32690931]
[1768018016090,6.6299,135.93,135.85,0.32690931]
[1768018016284,0.3133506,135.96,135.87,0.32690931]
[1768018016482,0.3133506,135.94,135.87,0.32690931]
[1768018016997,5.91767359,135.93,135.87,0.32690931]
[1768018017284,0.3133506,135.94,135.87,0.32690931]
[1768018017485,5.97285507,135.93,135.87,0.32690931]
[1768018017684,0.3133506,135.94,135.87,0.32690931]
[1768018017886,5.97285507,135.93,135.87,0.32690931]
[1768018018087,0.3133506,135.94,135.87,0.32690931]
[1768018019089,6.28291008,135.93,135.87,0.32690931]
[1768018019290,0.3133506,135.93,135.87,0.32690931]
[1768018020090,0.3133506,135.93,135.85,6.96010931]
[1768018020486,0.3133506,135.93,135.85,0.32690931]
[1768018020787,0.3133506,135.92,135.85,0.32690931]
[1768018020984,0.3133506,135.92,135.83,9.11307752]
[1768018020985,0.3133506,135.9,135.83,6.96110931]
[1768018022291,0.3133506,135.9,135.83,0.32690931]
[1768018023488,0.3098647,135.89,135.82,6.6348]
[1768018023892,0.3098647,135.89,135.85,0.04906845]
[1768018025291,0.04651736,135.88,135.85,0.04906845]
[1768018025893,0.04651736,135.88,135.81,0.3192334]
[1768018026588,0.35638206,135.88,135.81,0.3192334]
[1768018027294,0.35638206,135.88,135.82,0.3192334]
[1768018028502,0.3098647,135.87,135.82,0.3192334]
[1768018028999,0.3098647,135.87,135.8,0.3192334]
[1768018029883,0.05293688,135.85,135.8,0.3192334]
[1768018031000,0.3098647,135.89,135.81,0.3192334]
[1768018032798,0.3098647,135.89,135.84,0.05083287]
[1768018033299,6.9416647,135.89,135.84,0.05083287]
[1768018034296,0.05087644,135.88,135.84,0.05083287]
[1768018034595,6.99304114,135.88,135.84,0.05083287]
[1768018034900,6.99304114,135.88,135.81,0.3192334]
[1768018035102,0.36074114,135.88,135.81,0.3192334]
[1768018036693,6.6327,135.87,135.81,0.3192334]
[1768018037404,6.9425647,135.87,135.81,0.3192334]
[1768018040199,0.3098647,135.86,135.81,0.3192334]
[1768018041001,0.05488669,135.85,135.81,0.3192334]
[1768018049619,0.05488669,135.85,135.79,6.6364]
[1768018049820,6.29065977,135.84,135.78,0.3192334]
[1768018050011,6.29065977,135.84,135.73,0.3192334]
[1768018050012,0.3098647,135.82,135.73,0.3192334]
[1768018050914,0.0523389,135.79,135.73,0.3192334]
[1768018051523,0.0523389,135.79,135.75,6.638]
[1768018051718,0.0523389,135.79,135.76,0.3192334]
[1768018052118,0.3098647,135.82,135.76,0.3192334]
[1768018053627,6.6347,135.83,135.76,0.3192334]
[1768018054020,6.93561296,135.83,135.76,0.3192334]
[1768018056224,6.93561296,135.83,135.78,0.05619924]
[1768018056619,0.05410202,135.81,135.78,0.05619924]
[1768018061927,0.05410202,135.81,135.72,103.2835]
[1768018061928,0.30091296,135.8,135.73,0.32403774]
[1768018062226,0.30091296,135.79,135.73,0.32403774]
[1768018062627,1.89024632,135.79,135.73,0.32403774]
[1768018063322,0.05156519,135.77,135.73,0.32403774]
[1768018064025,0.05156519,135.77,135.73,6.96333774]
[1768018068726,8.52594632,135.81,135.74,0.32403774]
[1768018070733,8.52594632,135.81,135.76,0.04635508]
[1768018071727,0.31495733,135.8,135.76,0.04635508]
[1768018073238,6.94965733,135.83,135.76,0.36793794]
[1768018073433,0.31495733,135.83,135.76,0.36793794]
[1768018073635,1.90429069,135.82,135.76,0.32158286]
[1768018074436,1.90429069,135.82,135.78,0.0513092]
[1768018075139,0.05204506,135.81,135.78,0.0513092]
[1768018077646,0.36700239,135.81,135.74,1.91091622]
[1768018078441,0.36700239,135.81,135.75,0.32158286]
[1768018080944,0.31495733,135.8,135.73,0.32158286]
[1768018081835,0.04652736,135.78,135.73,0.32158286]
[1768018084342,0.34910312,135.78,135.72,6.6396]
[1768018084843,0.34910312,135.78,135.73,0.32466704]
[1768018086650,0.04652736,135.78,135.74,0.32466704]
[1768018087452,0.30257576,135.82,135.75,0.32466704]
[1768018087747,0.30257576,135.82,135.75,6.96296704]
[1768018087947,5.84875693,135.81,135.75,0.32466704]
[1768018088246,0.30257576,135.81,135.75,0.32466704]
[1768018088451,0.30257576,135.8,135.73,6.96366704]
[1768018090557,0.30257576,135.79,135.73,0.32466704]
[1768018092050,6.93907576,135.79,135.73,0.32466704]
[1768018094449,5.84133764,135.78,135.73,0.32466704]
[1768018094649,6.93907576,135.79,135.73,0.32466704]
[1768018094951,6.1439134,135.78,135.73,0.32466704]
[1768018095157,0.30257576,135.78,135.73,0.32466704]
[1768018098867,0.30257576,135.8,135.73,0.32466704]
[1768018099172,5.84052693,135.79,135.73,0.32466704]
[1768018099456,5.84052693,135.78,135.73,0.32466704]
[1768018099661,0.30257576,135.8,135.73,0.32466704]
[1768018099855,5.84059935,135.79,135.73,0.32466704]
[1768018100055,5.84059935,135.78,135.73,0.32466704]
[1768018100260,0.30257576,135.8,135.73,0.32466704]
[1768018100562,5.84054563,135.79,135.73,0.32466704]
[1768018100755,5.84054563,135.78,135.73,0.32466704]
[1768018100958,0.30257576,135.8,135.73,0.32466704]
[1768018101149,6.14329759,135.79,135.73,0.32466704]
[1768018101461,5.84072183,135.78,135.73,6.96396704]
[1768018101663,0.30257576,135.79,135.73,6.96396704]
[1768018101962,5.84090934,135.78,135.73,6.96396704]
[1768018102265,0.30257576,135.79,135.73,6.96396704]
[1768018102470,5.84140882,135.78,135.73,6.96396704]
[1768018102670,0.30257576,135.79,135.73,6.96396704]
[1768018102962,5.84140882,135.78,135.73,6.96396704]
[1768018103266,0.30257576,135.79,135.73,6.96396704]
[1768018103461,5.84216269,135.78,135.73,6.96396704]
[1768018103661,0.30257576,135.79,135.73,6.96396704]
[1768018103862,5.84216269,135.78,135.73,6.96396704]
[1768018104064,0.30257576,135.79,135.73,6.96396704]
[1768018104263,5.84217119,135.78,135.73,6.96396704]
[1768018104462,0.30257576,135.79,135.73,6.96396704]
[1768018104657,5.84303953,135.78,135.73,6.96396704]
[1768018104858,0.30257576,135.79,135.73,6.96396704]
[1768018105053,5.84303953,135.78,135.73,6.96396704]
[1768018105255,0.30257576,135.79,135.73,6.96396704]
[1768018105455,5.84364935,135.78,135.73,6.96396704]
[1768018105655,0.30257576,135.79,135.73,6.96396704]
[1768018105865,5.84364935,135.78,135.73,6.96396704]
[1768018106065,0.30257576,135.79,135.73,6.96396704]
[1768018106267,5.84363557,135.78,135.73,6.96396704]
[1768018106467,0.30257576,135.79,135.73,6.96396704]
[1768018106667,5.84313625,135.78,135.73,6.96396704]
[1768018106868,0.30257576,135.79,135.73,6.96396704]
[1768018107067,5.84280451,135.78,135.73,6.96396704]
[1768018107262,0.30257576,135.79,135.73,6.96396704]
[1768018107461,5.84265959,135.78,135.73,6.96396704]
[1768018107666,0.30257576,135.79,135.73,6.96396704]
[1768018107864,5.8218748,135.78,135.73,6.96396704]
[1768018108065,0.30257576,135.79,135.73,6.96396704]
[1768018108267,5.82186911,135.78,135.73,6.96396704]
[1768018108464,0.30257576,135.79,135.73,6.96396704]
[1768018108660,5.82172009,135.78,135.73,6.96396704]
[1768018108869,0.30257576,135.79,135.73,6.96396704]
[1768018109062,5.82172009,135.78,135.73,6.96396704]
[1768018109362,0.30257576,135.79,135.73,6.96396704]
[1768018109561,5.82158341,135.78,135.73,6.96396704]
[1768018109761,0.30257576,135.79,135.73,6.96396704]
[1768018109962,5.82158341,135.78,135.73,6.96396704]
[1768018110164,0.30257576,135.79,135.73,6.96396704]
[1768018110365,5.82145776,135.78,135.73,6.96396704]
[1768018110565,0.30257576,135.79,135.73,6.96396704]
[1768018110771,5.82145776,135.78,135.73,6.96396704]
[1768018111067,0.30257576,135.79,135.73,6.96396704]
[1768018111265,5.8214807,135.78,135.73,6.96396704]
[1768018111461,0.30257576,135.79,135.73,6.96396704]
[1768018111669,5.81949413,135.78,135.73,6.96396704]
[1768018111961,5.81950106,135.77,135.73,0.32466704]
[1768018112265,0.30257576,135.79,135.73,0.32466704]
[1768018112465,5.81916035,135.78,135.73,0.32466704]
[1768018112667,5.81916035,135.77,135.73,0.32466704]
[1768018112967,0.30257576,135.79,135.73,0.32466704]
[1768018113169,5.81916035,135.78,135.73,0.32466704]
[1768018113370,6.15060834,135.77,135.71,6.94909442]
[1768018113574,6.15034303,135.76,135.71,0.30909442]
[1768018113775,0.33197925,135.76,135.71,0.30909442]
[1768018114470,0.33197925,135.76,135.71,6.94929442]
[1768018114675,0.33197925,135.78,135.72,0.30909442]
[1768018114875,5.8177129,135.77,135.72,0.30909442]
[1768018115064,0.33197925,135.78,135.72,0.30909442]
[1768018115268,5.81724308,135.77,135.72,0.30909442]
[1768018115578,0.33197925,135.78,135.72,6.94889442]
[1768018115775,5.81731355,135.77,135.72,6.94889442]
[1768018115969,0.33197925,135.78,135.72,6.94889442]
[1768018116169,5.81741208,135.77,135.72,6.94889442]
[1768018116373,5.81750205,135.76,135.72,0.30909442]
[1768018116581,0.33197925,135.77,135.72,0.30909442]
[1768018116779,5.81751343,135.76,135.7,6.94969442]
[1768018116973,0.33197925,135.74,135.67,0.30909442]
[1768018117165,0.33197925,135.74,135.68,0.30909442]
[1768018118076,0.0497022,135.72,135.68,0.30909442]
[1768018118473,0.0497022,135.72,135.7,0.05416093]
[1768018122067,0.33197925,135.74,135.7,0.05416093]
[1768018122577,0.33197925,135.76,135.7,0.36325535]
[1768018122779,5.81361519,135.75,135.7,0.36325535]
[1768018122976,0.33197925,135.76,135.7,0.36325535]
[1768018123375,5.8127438,135.75,135.7,0.36325535]
[1768018123577,0.33197925,135.76,135.7,0.36325535]
[1768018123775,6.1451936,135.75,135.7,0.36325535]
[1768018123982,0.33197925,135.75,135.7,0.36325535]
[1768018124482,0.33197925,135.75,135.7,0.05416093]
[1768018126785,0.33197925,135.77,135.7,0.36325535]
[1768018127085,5.81143058,135.76,135.7,0.36325535]
[1768018127284,5.81143058,135.75,135.7,7.00405535]
[1768018127477,0.33197925,135.77,135.7,7.00405535]
[1768018127676,6.14307164,135.76,135.7,7.00405535]
[1768018127873,5.81109239,135.75,135.7,7.00405535]
[1768018128072,0.33197925,135.76,135.7,7.00405535]
[1768018128271,5.81084226,135.75,135.7,7.00405535]
[1768018128475,0.33197925,135.76,135.7,7.00405535]
[1768018128690,5.81084226,135.75,135.7,7.00405535]
[1768018128989,0.33197925,135.76,135.7,7.00405535]
[1768018129289,4.39e-05,135.75,135.72,0.30909442]
[1768018129582,0.33197925,135.79,135.72,0.30909442]
[1768018130185,0.33197925,135.79,135.74,0.05374681]
[1768018134788,0.33197925,135.79,135.74,0.37466687]
[1768018134988,0.32775918,135.81,135.74,0.37466687]
[1768018141494,5.78108669,135.8,135.74,0.37466687]
[1768018141696,0.32775918,135.81,135.74,0.37466687]
[1768018141890,6.6354,135.82,135.75,0.32092006]
[1768018142089,5.78065513,135.81,135.75,0.32092006]
[1768018142285,6.96315918,135.82,135.75,0.32092006]
[1768018142487,5.78003177,135.81,135.75,0.32092006]
[1768018142791,6.96315918,135.82,135.77,0.05143395]
[1768018142996,5.7800359,135.81,135.77,0.05143395]
[1768018143194,6.96315918,135.82,135.77,0.05143395]
[1768018143396,5.77905298,135.81,135.77,0.05143395]
[1768018143590,6.96315918,135.82,135.77,0.05143395]
[1768018143894,5.77906032,135.81,135.77,0.05143395]
[1768018144094,6.96315918,135.82,135.77,0.05143395]
[1768018144288,5.77895093,135.81,135.77,0.05143395]
[1768018144483,6.96315918,135.82,135.77,0.05143395]
[1768018144687,5.77844548,135.81,135.77,0.05143395]
[1768018144890,6.96315918,135.82,135.77,0.05143395]
[1768018145089,5.77844548,135.81,135.77,0.05143395]
[1768018145289,6.96315918,135.82,135.77,0.05143395]
[1768018145490,5.77784718,135.81,135.77,0.05143395]
[1768018145691,6.96315918,135.82,135.77,0.05143395]
[1768018146897,5.7749312,135.81,135.77,0.05143395]
[1768018147095,6.96315918,135.82,135.77,0.05143395]
[1768018148900,0.3160533,135.81,135.77,0.05143395]
[1768018156512,6.6354,135.82,135.77,0.37667582]
[1768018156710,6.9514533,135.82,135.77,0.37667582]
[1768018160613,0.3160533,135.81,135.77,0.05143395]
[1768018167226,0.3160533,135.83,135.77,0.37667582]
[1768018167431,0.3160533,135.83,135.77,7.01387582]
[1768018167623,0.3160533,135.83,135.77,6.96244187]
[1768018168034,0.3160533,135.83,135.79,0.04709049]
[1768018172132,0.3160533,135.85,135.79,0.04709049]
[1768018173242,6.0833438,135.84,135.79,0.04709049]
[1768018173441,0.30820952,135.84,135.79,0.04709049]
[1768018178244,0.30820952,135.84,135.76,6.96662292]
[1768018178245,0.30820952,135.82,135.76,6.96662292]
[1768018178940,0.30820952,135.82,135.76,6.6377]
[1768018179144,0.30820952,135.82,135.77,0.32892292]
[1768018179545,0.30820952,135.82,135.78,0.05159718]
[1768018192153,0.04792273,135.83,135.79,0.30875647]
[1768018192749,0.3322548,135.84,135.79,6.94505647]
[1768018199860,0.3322548,135.86,135.8,0.30875647]
[1768018200165,5.9932036,135.85,135.8,0.30875647]
[1768018200364,0.3322548,135.85,135.8,6.94465647]
[1768018200662,0.3322548,135.87,135.81,0.36119871]
[1768018200961,0.3322548,135.87,135.82,6.94365647]
[1768018201554,0.3322548,135.89,135.82,6.94365647]
[1768018201758,0.3322548,135.89,135.83,0.30875647]
[1768018201959,0.3322548,135.89,135.83,6.94315647]
[1768018202161,0.3322548,135.87,135.81,0.30875647]
[1768018202461,0.3322548,135.87,135.85,0.05154676]
[1768018205363,0.3322548,135.87,135.81,0.30875647]
[1768018208458,0.3322548,135.87,135.81,6.94415647]
[1768018208663,0.3322548,135.87,135.81,0.30875647]
[1768018209258,0.3322548,135.87,135.82,6.6349]
[1768018211166,0.05081846,135.86,135.82,6.6349]
[1768018211562,0.05081846,135.86,135.83,0.04680362]
[1768018215268,0.05081846,135.86,135.83,0.36365589]
[1768018215570,0.30495203,135.89,135.83,0.36365589]
[1768018224373,0.30495203,135.89,135.84,0.31685227]
[1768018224769,0.30495203,135.89,135.84,6.95075227]
[1768018227776,1.5879816,135.9,135.84,6.95075227]
[1768018227979,1.5879816,135.9,135.85,0.31685227]
[1768018228780,1.5879816,135.9,135.86,0.04671467]
[1768018228978,0.30495203,135.93,135.86,0.36356694]
[1768018229479,0.30495203,135.93,135.87,0.31685227]
[1768018229774,0.30495203,135.93,135.88,0.05337009]
[1768018230082,0.30495203,135.93,135.88,0.37022236]
[1768018230280,1.5879816,135.94,135.88,0.37022236]
[1768018230472,0.30495203,135.95,135.88,0.37022236]
[1768018232374,0.30495203,135.95,135.88,0.05337009]
[1768018232678,21.71233129,136.04,135.88,0.05337009]
[1768018232679,0.30495203,135.93,135.88,0.05337009]
[1768018233079,0.30495203,135.93,135.87,0.31685227]
[1768018233579,0.30495203,135.93,135.89,0.04742616]
[1768018240292,0.31825292,135.92,135.89,0.04742616]
[1768018249898,0.31825292,135.91,135.86,0.32645029]
[1768018257915,0.31825292,135.91,135.85,93.6332]
[1768018258112,6.94895292,135.91,135.85,87.0]
[1768018258304,6.94895292,135.91,135.84,0.31250361]
[1768018258305,0.31806254,135.9,135.84,0.31250361]
[1768018258809,0.31806254,135.89,135.82,0.31250361]
[1768018260611,0.31806254,135.89,135.82,6.94740361]
[1768018260815,0.31806254,135.89,135.83,0.31250361]
[1768018261107,6.6312,135.9,135.83,0.31250361]
[1768018261313,0.31806254,135.91,135.84,0.31250361]
[1768018262612,0.31806254,135.91,135.85,6.6335]
[1768018264213,0.31806254,135.91,135.84,0.31250361]
[1768018266021,5.90423944,135.9,135.84,0.31250361]
[1768018266221,0.303673,135.9,135.84,0.31250361]
[1768018270217,0.303673,135.9,135.83,6.6342]
[1768018270416,6.935773,135.88,135.82,0.30503444]
[1768018270620,6.98805177,135.88,135.82,0.30503444]
[1768018270916,0.303673,135.86,135.8,0.30503444]
[1768018271421,0.303673,135.85,135.8,0.30503444]
[1768018272219,0.047027,135.84,135.8,0.30503444]
[1768018273329,0.047027,135.84,135.76,0.30503444]
[1768018273330,0.303673,135.82,135.76,0.30503444]
[1768018274323,0.04857616,135.8,135.76,0.30503444]
[1768018290538,0.303673,135.82,135.76,0.30503444]
[1768018291439,0.303673,135.82,135.77,0.30503444]
[1768018294436,0.33303633,135.81,135.75,0.33005133]
[1768018312449,6.96863633,135.81,135.75,0.33005133]
[1768018314355,5.62187652,135.8,135.75,0.33005133]
[1768018314547,6.96863633,135.81,135.75,0.33005133]
[1768018314745,5.62187652,135.8,135.75,0.33005133]
[1768018314942,6.95975077,135.8,135.75,0.33005133]
[1768018315652,0.32375077,135.78,135.73,1.90722816]
[1768018315856,0.32375077,135.78,135.73,0.31835362]
[1768018320952,0.32375077,135.78,135.72,0.31835362]
[1768018320953,0.32375077,135.77,135.72,0.31835362]
[1768018322263,0.32375077,135.77,135.72,1.90722816]
[1768018332973,0.31208955,135.79,135.73,0.30983992]
[1768018333173,0.31208955,135.79,135.74,1.89871446]
[1768018334970,0.31208955,135.79,135.74,0.30983992]
[1768018335764,0.31208955,135.81,135.73,1.58887454]
[1768018335966,0.31208955,135.81,135.76,0.30983992]
[1768018336470,5.62989053,135.8,135.76,0.30983992]
[1768018336670,0.31208955,135.81,135.76,0.30983992]
[1768018336870,5.62989053,135.8,135.76,0.30983992]
[1768018337071,0.31208955,135.81,135.76,0.30983992]
[1768018340875,6.94768955,135.81,135.76,0.30983992]
[1768018341063,5.59495221,135.8,135.76,0.30983992]
[1768018341268,6.94768955,135.81,135.76,0.30983992]
[1768018344178,5.59537261,135.8,135.76,0.30983992]
[1768018344372,6.94768955,135.81,135.76,0.30983992]
[1768018344566,5.59556714,135.8,135.76,0.30983992]
[1768018344770,6.94768955,135.81,135.76,0.30983992]
[1768018345064,5.59555633,135.8,135.76,0.30983992]
[1768018345367,6.94768955,135.81,135.76,0.30983992]
[1768018345564,5.90786221,135.8,135.73,6.94883992]
[1768018345768,0.31208955,135.8,135.73,6.94883992]
[1768018345968,6.94818955,135.8,135.74,0.30983992]
[1768018348081,5.59371916,135.79,135.74,0.30983992]
[1768018348276,6.94818955,135.8,135.74,0.30983992]
[1768018348476,5.5939795,135.79,135.74,0.30983992]
[1768018348679,0.31208955,135.79,135.74,0.30983992]
[1768018349977,5.90609073,135.78,135.72,0.30983992]
[1768018350176,0.31208955,135.78,135.72,0.30983992]
[1768018351183,0.31208955,135.77,135.72,0.30983992]
[1768018363086,6.6371,135.78,135.72,0.30983992]
[1768018363789,6.94623979,135.78,135.72,0.30983992]
[1768018366796,0.30913979,135.78,135.73,0.30577165]
[1768018381213,0.3186106,135.81,135.73,0.30577165]
[1768018381413,5.89953113,135.8,135.73,0.30577165]
[1768018381613,5.58092053,135.79,135.73,0.30577165]
[1768018381814,5.58092053,135.78,135.73,0.30577165]
[1768018382006,0.3186106,135.8,135.73,0.30577165]
[1768018382207,5.58130282,135.79,135.73,0.30577165]
[1768018382403,0.3186106,135.8,135.73,0.30577165]
[1768018382803,5.58153624,135.79,135.73,0.30577165]
[1768018383008,0.3186106,135.8,135.73,0.30577165]
[1768018383210,5.5815872,135.79,135.73,0.30577165]
[1768018383410,0.3186106,135.8,135.73,0.30577165]
[1768018383613,5.5818797,135.79,135.74,6.9505584]
[1768018383810,0.3186106,135.8,135.74,6.9505584]
[1768018384015,5.5818797,135.79,135.74,6.9505584]
[1768018384214,0.3186106,135.8,135.74,6.9505584]
[1768018384417,5.58192154,135.79,135.74,6.9505584]
[1768018384611,0.3186106,135.8,135.74,6.9505584]
[1768018384807,5.58247407,135.79,135.74,6.9505584]
[1768018385012,0.3186106,135.8,135.74,6.9505584]
[1768018385214,5.58253006,135.79,135.74,6.9505584]
[1768018385520,0.3186106,135.8,135.74,6.9505584]
[1768018385721,5.58312802,135.79,135.74,6.9505584]
[1768018385922,0.3186106,135.8,135.74,6.9505584]
[1768018386122,5.58314883,135.79,135.74,6.9505584]
[1768018386420,0.3186106,135.8,135.74,6.9505584]
[1768018386621,5.58349909,135.79,135.74,6.9505584]
[1768018386823,0.3186106,135.8,135.74,6.9505584]
[1768018387122,5.58349909,135.79,135.74,6.9505584]
[1768018387315,0.3186106,135.8,135.74,6.9505584]
[1768018387515,5.58402817,135.79,135.74,6.9505584]
[1768018387716,0.3186106,135.8,135.74,6.9505584]
[1768018387916,5.58412332,135.79,135.74,6.9505584]
[1768018388117,0.3186106,135.8,135.74,6.9505584]
[1768018388319,5.58408766,135.79,135.74,6.9505584]
[1768018388523,0.3186106,135.8,135.74,6.9505584]
[1768018388725,5.5848923,135.79,135.74,6.9505584]
[1768018388925,0.3186106,135.8,135.74,6.9505584]
[1768018389127,5.5848923,135.79,135.74,6.9505584]
[1768018389327,0.3186106,135.8,135.74,6.9505584]
[1768018389626,5.58533559,135.79,135.74,6.9505584]
[1768018389825,0.3186106,135.8,135.74,6.9505584]
[1768018390024,5.58533559,135.79,135.74,6.9505584]
[1768018390224,0.3186106,135.8,135.74,6.9505584]
[1768018390414,5.58524757,135.79,135.74,6.9505584]
[1768018390619,0.3186106,135.8,135.74,6.9505584]
[1768018390818,5.58579742,135.79,135.74,6.9505584]
[1768018391014,0.3186106,135.8,135.74,6.9505584]
[1768018391223,5.58568617,135.79,135.74,6.9505584]
[1768018391429,0.3186106,135.8,135.74,6.9505584]
[1768018391724,5.58598311,135.79,135.74,6.9505584]
[1768018391925,0.3186106,135.8,135.74,6.9505584]
[1768018392127,5.58598311,135.79,135.74,6.9505584]
[1768018392319,0.3186106,135.8,135.74,6.9505584]
[1768018392523,5.58625557,135.79,135.74,6.9505584]
[1768018392730,0.3186106,135.8,135.74,6.9505584]
[1768018392924,5.58625557,135.79,135.74,6.9505584]
[1768018393221,0.3186106,135.8,135.74,6.9505584]
[1768018393420,5.58611746,135.79,135.74,6.9505584]
[1768018393721,0.3186106,135.8,135.74,6.9505584]
[1768018393921,5.58614206,135.79,135.74,6.9505584]
[1768018394125,0.3186106,135.8,135.74,6.9505584]
[1768018394320,5.58601302,135.79,135.74,6.9505584]
[1768018394519,0.3186106,135.8,135.74,6.9505584]
[1768018394829,5.58597162,135.79,135.74,6.9505584]
[1768018395029,0.3186106,135.8,135.74,0.3117584]
[1768018395228,5.90292193,135.79,135.74,0.3117584]
[1768018395529,0.31691541,135.79,135.74,0.3117584]
[1768018396728,5.58588382,135.78,135.74,0.3117584]
[1768018396917,0.31691541,135.79,135.74,0.3117584]
[1768018397123,5.58593518,135.78,135.74,0.3117584]
[1768018397324,0.31691541,135.79,135.74,0.3117584]
[1768018397530,5.58591925,135.78,135.74,0.3117584]
[1768018397730,0.31691541,135.79,135.74,0.3117584]
[1768018398132,5.9028362,135.78,135.72,0.3117584]
[1768018398336,0.31691541,135.78,135.72,0.3117584]
[1768018398530,5.90240996,135.77,135.72,0.3117584]
[1768018398735,0.31691541,135.77,135.72,0.3117584]
[1768018398937,0.31691541,135.77,135.74,0.05263162]
[1768018399533,0.04843478,135.76,135.74,0.05263162]
[1768018403428,0.31691541,135.79,135.74,0.05263162]
[1768018403630,5.58504433,135.78,135.74,0.05263162]
[1768018403938,0.31691541,135.79,135.74,0.05263162]
[1768018404131,5.58504279,135.78,135.74,0.36439002]
[1768018404337,0.31691541,135.81,135.74,0.36439002]
[1768018404537,5.58509479,135.8,135.74,0.36439002]
[1768018404728,5.58509479,135.79,135.74,0.36439002]
[1768018404929,0.31691541,135.81,135.74,0.36439002]
[1768018405134,5.58509633,135.8,135.74,0.36439002]
[1768018405429,5.58509633,135.79,135.74,0.36439002]
[1768018405630,0.31691541,135.81,135.75,0.3117584]
[1768018405829,5.58498693,135.8,135.75,0.3117584]
[1768018406039,5.58498693,135.79,135.75,0.3117584]
[1768018406341,0.31691541,135.81,135.75,0.3117584]
[1768018406637,5.58490213,135.8,135.75,0.3117584]
[1768018406936,5.58490213,135.79,135.75,0.3117584]
[1768018407141,0.31691541,135.83,135.76,0.3117584]
[1768018407328,5.58516465,135.82,135.76,0.3117584]
[1768018407530,0.31691541,135.83,135.76,0.3117584]
[1768018407839,5.58515104,135.82,135.76,0.3117584]
[1768018408134,0.31691541,135.83,135.78,0.05635389]
[1768018408340,5.49490606,135.82,135.78,0.05635389]
[1768018408539,0.31691541,135.83,135.78,0.05635389]
[1768018408728,5.49486158,135.82,135.78,0.05635389]
[1768018408932,0.31691541,135.83,135.78,0.05635389]
[1768018412738,0.31691541,135.83,135.78,0.36811229]
[1768018418152,0.33046235,135.85,135.78,0.36811229]
[1768018419357,0.33046235,135.85,135.78,0.05635389]
[1768018419358,0.33046235,135.84,135.78,0.05635389]
[1768018421156,0.33046235,135.83,135.78,0.05635389]
[1768018429061,0.33046235,135.83,135.78,6.99682524]
[1768018431358,0.33046235,135.83,135.78,0.05635389]
[1768018434268,0.30196861,135.82,135.78,0.05635389]
[1768018451272,0.3039486,135.81,135.78,0.05635389]
[1768018451477,0.3039486,135.81,135.74,87.36732055]
[1768018452365,0.3039486,135.81,135.75,0.30732055]
[1768018454972,0.3039486,135.82,135.75,0.30732055]
[1768018455177,0.3039486,135.82,135.76,0.30732055]
[1768018455178,6.9389486,135.82,135.76,0.30732055]
[1768018455778,0.3039486,135.81,135.76,0.30732055]